Cogmind - Beta 13 @@@ ROGUE MODE // 2024.07.08 @ 12:31:09 Player: APerTAS Result: Destroyed by S-10 Pest with Light Assault Rifle Performance ------------- Evolutions (0) 0 Regions Visited (1) 200 Robots Destroyed (13) 65 Value Destroyed (122) 122 Prototype IDs (0) 0 Alien Tech Used (0) 0 Bonus (0) 0 TOTAL SCORE: 387 Bonus ------- None Cogmind --------- Core Integrity 0/250 Matter 300/300 Energy 100/100 System Corruption 4% Temperature Cool (0) Movement Core (100) Ox1 Location -10/Materials Parts ------- > --- POWER (1) -------- (None) > --- PROPULSION (2) --- (None) > --- UTILITY (2) ------ Small Storage Unit Signal Interpreter > --- WEAPON (2) ------- (None) > --- INVENTORY (8) ---- Large Battery (200) Medium Matter Pod (100) Sensor Array Improved Terrain Scanner Medium Laser Shotgun Datajack Welding Torch Peak State ------------ > --- POWER ------------ Ion Engine > --- PROPULSION ------- Wheel Wheel > --- UTILITY ---------- Small Storage Unit Improved Terrain Scanner > --- WEAPON ----------- EM Pulse Gun Assault Rifle > --- INVENTORY -------- Light Treads Large Battery Medium Matter Pod Medium Laser Datajack Welding Torch [Rating: 9] Favorites ----------- Power Ion Engine Engine Ion Engine Propulsion Wheel Treads Light Treads Wheel Wheel Utility Small Storage Unit Device Improved Terrain Scanner Storage Small Storage Unit Processor Signal Interpreter Weapon EM Pulse Gun Energy Gun EM Pulse Gun Ballistic Gun Assault Rifle Build | -11 -10 ------- Run | Yrd Mat Slots Evolved . | . . Power . | . . Propulsion . | . . Utility . | . . Weapon . | . . Parts Attached 12 | 7 5 Power 1 | 1 . Engine 1 | 1 . Core . | . . Reactor . | . . Propulsion 5 | 3 2 Treads 1 | 1 . Leg . | . . Wheel 4 | 2 2 Hover . | . . Flight . | . . Utility 4 | 2 2 Device 2 | 1 1 Storage 1 | 1 . Processor 1 | . 1 Hackware . | . . Protection . | . . Artifact . | . . Weapon 2 | 1 1 Energy Gun 1 | 1 . Energy Cannon . | . . Ballistic Gun 1 | . 1 Ballistic Cannon . | . . Launcher . | . . Special Weapon . | . . Impact Weapon . | . . Slashing Weapon . | . . Piercing Weapon . | . . Special Melee Weapon . | . . Unidentified Prototypes . | . . Parts Lost 5 | . 5 Power 1 | . 1 Propulsion 2 | . 2 Utility . | . . Weapon 2 | . 2 Highest Loss Streak 5 | . 5 To Critical Strikes . | . . Average Slot Usage (%) 93 | . 93 Engine 14 | . 14 Wheel 27 | . 27 Device 9 | . 9 Storage 14 | . 14 Processor 4 | . 4 Energy Gun 13 | . 13 Ballistic Gun 8 | . 8 Naked Turns . | . . Heaviest Build 15 | 13 15 Greatest Support 32 | 20 32 Greatest Overweight (x) . | . . Average Overweight (x) . | . . Largest Inventory Capacity 8 | 8 8 Average Capacity 7 | 6 8 Most Carried 8 | 4 8 Average Carried 6 | 2 7 Final Capacity 8 | 8 8 Final Carried 8 | 3 8 Class Distribution -------------------- 100% | Mutant Dominant Class ---------------- Mutant | -10/Materials Resources | -11 -10 ----------- Run | Yrd Mat Matter Collected 465 | 270 195 Remotely . | . . Salvage Created 367 | 125 242 Parts 25 | 6 19 Haulers Intercepted . | . . Recyclers Shooed 1 | . 1 Parts Field Recycled . | . . Retrieved Matter . | . . Parts Self-Destructed . | . . Prevented . | . . Kills | -11 -10 ------- Run | Yrd Mat Combat Hostiles Destroyed 4 | . 4 Guns 3 | . 3 AOE 1 | . 1 Classes Destroyed 5 | 2 3 Worker 1 | . 1 Tunneler 3 | 3 . Recycler 2 | 1 1 Watcher 3 | . 3 Swarmer 4 | . 4 Best Kill Streak 7 | 4 7 Combat Bots Only 3 | . 3 Max Kills in Single Turn 2 | 2 2 Gunslinging . | . . Exploded 1 | . 1 Melee . | . . Uniques/NPCs Destroyed . | . . Combat | -11 -10 -------- Run | Yrd Mat Hostile Shots Fired 88 | . 88 Missed 18 | . 18 Damage Taken 626 | . 626 Core 252 | . 252 Absorbed by Shields . | . . Core Remaining (%) 100 | 100 . Volleys Fired 23 | 6 17 Largest 2 | 1 2 Hottest 60 | 40 60 Shots Fired 39 | 6 33 Gun 39 | 6 33 Cannon . | . . Launcher . | . . Special . | . . Kinetic 16 | . 16 Thermal . | . . Explosive . | . . Electromagnetic 23 | 6 17 Robot Hit Streak 4 | 2 4 Robot Miss Streak 4 | 4 3 Penetration Max . | . . Secondary Targets 1 | . 1 Max Gunslinging Chain 1 | . 1 Shots Hit Robots 22 | 2 20 Core Hits 17 | 4 13 Critical Kills . | . . Critical Parts Destroyed . | . . Critical Strikes . | . . Melee Attacks . | . . Impact . | . . Slashing . | . . Piercing . | . . Sneak Attacks . | . . Combat Hostiles . | . . Follow-up Attacks . | . . Damage Inflicted 615 | 227 388 Guns 332 | 43 289 Cannons . | . . Explosions 254 | 184 70 Melee . | . . Ramming 29 | . 29 Kinetic 133 | . 133 Thermal 254 | 184 70 Explosive . | . . Electromagnetic 199 | 43 156 Impact . | . . Slashing . | . . Piercing . | . . Highest Corruption 4 | . 4 Average Corruption 4 | . 4 Corruption Purged . | . . Corruption Blocked . | . . Effects 1 | . 1 Message Errors 1 | . 1 Overload Shots . | . . Overflow Damage . | . . Projectiles . | . . Explosions . | . . Melee . | . . Knockbacks . | . . Impact . | . . Kinetic . | . . Secondary . | . . Self-Inflicted Damage 13 | . 13 Shots . | . . Rammed 12 | . 12 Targets Rammed 12 | . 12 Kicked . | . . Crushed . | . . Highest Temperature 48 | 20 48 Average Temperature 22 | 20 23 Received Heat Transfer 108 | . 108 Siege Activations . | . . Robots Corrupted . | . . Combat Hostiles . | . . Parts Fried . | . . Impact Corruptions . | . . Robots Melted . | . . Combat Hostiles . | . . Parts Melted . | . . Heat Transferred 250 | 100 150 Parts Sabotaged . | . . Parts Stolen . | . . Parts Stripped . | . . Power Chain Reactions 3 | 2 1 Alert | -11 -10 ------- Run | Yrd Mat Peak Influence 172 | 20 172 Initial 13 | . 13 Average 72 | 7 85 Maximum Alert Level . | . . Low Security (%) 100 | 100 100 Level 1 . | . . Level 2 . | . . Level 3 . | . . Level 4 . | . . Level 5 . | . . High Security . | . . Max Security . | . . Squads Dispatched 2 | . 2 Investigation 1 | . 1 Extermination . | . . Reinforcement 1 | . 1 Assault . | . . Garrison . | . . Intercept . | . . Searches Triggered . | . . Construction Impeded . | . . Haulers Reinforced . | . . Active Scanning Responses . | . . Cargo Convoy Interrupts . | . . Stealth | -11 -10 --------- Run | Yrd Mat Distress Signals 1 | . 1 Communications Jammed . | . . Distress Signals . | . . Times Spotted 15 | . 15 Peak Tracking Total 6 | . 6 Tactical Retreats . | . . Traps | -11 -10 ------- Run | Yrd Mat Traps Triggered . | . . Indirectly . | . . Trap Hack Attempts . | . . Triggered . | . . Disarmed . | . . Reprogrammed . | . . Reused . | . . Traps Extracted . | . . Installed . | . . Triggered . | . . Machines | -11 -10 ---------- Run | Yrd Mat Machines Disabled . | . . Max in Single Turn . | . . Machines Repaired . | . . Machines Dismantled . | . . Machines Sabotaged . | . . Overloaded Fab Kills . | . . Hacking | -11 -10 --------- Run | Yrd Mat Machines Accessed 2 | . 2 Terminals 2 | . 2 Fabricators . | . . Repair Stations . | . . Recycling Units . | . . Scanalyzers . | . . Garrison Access . | . . Total Hacks 13 | . 13 Successful 4 | . 4 Failed 9 | . 9 Catastrophic 1 | . 1 Database Lockouts . | . . Manual . | . . Terminals 13 | . 13 Fabricators . | . . Repair Stations . | . . Recycling Units . | . . Scanalyzers . | . . Garrison Access . | . . Terminal Hacks 4 | . 4 Surveillance Status 1 | . 1 Patrol Status 1 | . 1 Reinforcement Status 1 | . 1 Assault Status 1 | . 1 Fabricator Hacks . | . . Repair Station Hacks . | . . Recycling Unit Hacks . | . . Scanalyzer . | . . Garrison Access Hacks . | . . Unauthorized Hacks . | . . Terminals . | . . Fabricators . | . . Repair Stations . | . . Recycling Units . | . . Scanalyzers . | . . Garrison Access . | . . Data Cores Recovered . | . . Used . | . . Hacking Detections 2 | . 2 Full Trace Events . | . . Feedback Events . | . . Feedback Blocked . | . . Robot Schematics Acquired . | . . Robots Built . | . . Authchips . | . . Time . | . . Total Robot Build Rating . | . . Part Schematics Acquired . | . . Parts Built . | . . Authchips . | . . Time . | . . Total Part Build Rating . | . . Parts Repaired . | . . Time . | . . Parts Recycled . | . . Recycled Matter . | . . Retrieved Matter . | . . Retrieved Components . | . . Parts Scanalyzed . | . . Part Schematics Acquired . | . . Parts Damaged . | . . Bothacking | -11 -10 ------------ Run | Yrd Mat Used RIF Installer . | . . Robots Hacked . | . . Non-combat . | . . Combat . | . . Robot Hacks Applied . | . . Relay Couplers Released . | . . Fabnet Peak Effective % . | . . Robots Rewired . | . . Allies Hacked . | . . Hacks Repelled . | . . Allies | -11 -10 -------- Run | Yrd Mat Total Allies . | . . Largest Group . | . . Highest-Rated Group . | . . Highest-Rated Ally . | . . Total Orders . | . . Ally Attacks . | . . Total Damage . | . . Kills . | . . Allies Corrupted . | . . Allies Melted . | . . Intel | -11 -10 ------- Run | Yrd Mat Robot Analysis Total . | . . Derelict Logs Recovered . | . . Drone Launches . | . . Drone Recoveries . | . . Exploration | -11 -10 ------------- Run | Yrd Mat Turns Passed 547 | 93 454 Spaces Moved 501 | 91 410 Core 27 | 27 . Treads . | . . Legs . | . . Wheels 474 | 64 410 Hover . | . . Flight . | . . Fastest Speed 50 | 50 80 Average Speed 86 | 71 90 Slowest Speed 100 | 80 100 Overloaded Moves . | . . Propulsion Burnouts . | . . Robots Hopped . | . . Cave-ins Triggered . | . . Exploration Rate (%) 28 | 4 52 Regions Visited 1 Branch Regions . Pre-discovered Areas . | . . Known Exits Taken . | . . Unknown Exits Taken 1 | 1 . Scrap Searched . | . . Spaces Dug . | . . Terrain Destroyed 9 | 3 6 Melee . | . . Projectile . | . . AOE 9 | 3 6 Terrain Rammed . | . . Walls Destroyed . | . . Machines Disabled . | . . Actions | -11 -10 --------- Run | Yrd Mat Total 572 | 113 459 Wait 1 | . 1 Move 500 | 90 410 Hop . | . . Pick Up 19 | 9 10 Fast Attach . | . . Attach 8 | 7 1 Detach 1 | 1 . Swap 4 | . 4 Drop 4 | . 4 Fire 23 | 6 17 Melee . | . . Ram 12 | . 12 Kick . | . . Crush . | . . Escape Stasis . | . . Rewire . | . . Trap . | . . Miscellaneous . | . . Route ------- -11/Scrapyard -10/Materials (discovered 2 exits: *Mat / [*Min]) History --------- Turn | Location | Event 8 | -11/Scrapyard | Discovered new exit (range 15) 94 | -11/Scrapyard | Entered Materials 173 | -10/Materials | Discovered new exit (range 7) 313 | -10/Materials | Build established: Mutant 370 | -10/Materials | Discovered new exit (range 10) 396 | -10/Materials | Identified exit to Materials 541 | -10/Materials | Core integrity fell below 50% 546 | -10/Materials | Core integrity fell below 20% 548 | -10/Materials | Destroyed by S-10 Pest with Light Assault Rifle Last Messages --------------- System corrupted by crushing effect (+4). M:KZ#JCHIFUGRDEF%W 1YEOJ Slammed into S-10 Pest. R-06 Scavenger collects Lgt. Ion Engine. G-34 Mercenary destroyed. Slammed into S-10 Pest. Com. Wheel destroyed. ALERT: Alarm triggered, dispatching investigation squad. Slammed into S-10 Pest. R-06 Scavenger collects Sensor Array. Slammed into S-10 Pest. Ion Engine destroyed. Slammed into S-10 Pest. Destabilizing: System interference. Signal Interpreter temporarily disabled. R-06 Scavenger collects Flight Unit. Slammed into S-10 Pest. R-06 Scavenger collects Flight Unit. Slammed into S-10 Pest. Map ----- +----------------------------------------------------+ | # #### ######????????????????????????? | | # #???? #? ???????????????????????????? | | ######### #??#?? #?????????????????????????????? | | =#[ + #??????#?????????????????????????????? | | " # # #????????????????????????????????????? | | "" #] # #????????????????????????????????????? | | " # # #????????????????????????????????????? | | # = # #????????????????????????????????????? | | #!/= # #????????????????????????????????????? | | #!/= # #????????????????????????????????????? | | #### # #?????????##+##??????????????????????? | | #??###### #????????? ??????????????????????? | | ######### #?#??????? ??????????????????????? | | #????????? ??????????????????????? | | #############?????????# #??????????????????????? | | #????#???????????# #??????????????????????? | | "T" #??#??????#??????# #??????????????????????? | | #????????????????# #??????????????????????? | | #????????????????# #??????????????????????? | | #????????????????# #??????????????????????? | | #??????########### #??????????????????????? | | +########???# # #??????????????????????? | | ##### # #??????????????????????? | | + # % #????????? ##??????????? | | ##### +%rg####### #??????????? | | #+####+##???# #%%@r r k #??????????? | | ^#????# # [s* s s T #??????????? | | #????# #s[==%r #??????????? | | #????# # ######### #??????????? | | #????########### #??????????## #??????????? | | #??????????????# #????????????????????????? | | #??????????????# #????????????????????????? | | #??????????????# #????????????????????????? | | #??????????????# #????????????????????????? | | #??????????????# #????????????????????????? | | ########??????????????? ?????????????????????????? | | ??????????????????????? ?????????????????????????? | | ????????#?????????????? ?????????????????????????? | | ??????????????????????? ?????????????????????????? | | ??????????????????????? ?????????????????????????? | | ??????????????????????? ?????????????????????????? | | ??????????????????????? ?????????????????????????? | | ?????????????????????????????????????????????????? | | ?????????????????????????????????????????????????? | | ?????????????????????????????????????????????????? | | ?????????????????????????????????????????????????? | | ?????????????????????????????????????????????????? | | ?????????????????????????????????????????????????? | | ?????????????????????????????????????????????????? | | ?????????????????????????????????????????????????? | +----------------------------------------------------+ Best States ------------- Heat Dissipation 25 Energy Generation 10 Energy Capacity 250 Matter Stores 300 Matter Capacity 300 Sight Range 16 Robot Scan Range 14 Terrain Scan Range 16 Terrain Scan Density 10 Evasion (%) 50 Item Schematics ----------------- None Robot Schematics ------------------ None Fabricated ------------ Nothing Alien Tech Used ----------------- None Achievements -------------- None Challenges ------------ None Game ------ Seed BiometalMetafiberAxe Manual? 0 Play Time 00:09:49 Cumulative 5.8 hours Start 2024.07.08 @ 12:21:32 End 2024.07.08 @ 12:31:09 Sessions 1 Manual Loads 0 Difficulty Rogue Special Mode None Game No. 15 Rogue 15 Adventurer 0 Explorer 0 Win Type - Total 0 Types 0/0/0/0/0/0/0/0/0 Lore% 10 Gallery% 7 Achievement% 8 Wizard Run 0 Options --------- Layout 1 ASCII 0 Keyboard 0 Movement Arrows Keybinds 0 Fullscreen 1 Font 28/Dina Map View 50x43 Zoom Use 0% Tactical HUD 0 Map Filters NONE Filters NONE Steam X RUN: 7b4b00ba-ce53-4c56-90b4-00a65aefe458